bitfinex/quotes_BTCUSD_20251104
["timestamp","ask_amount","ask_price","bid_price","bid_amount"]
[1762249136935,0.78745987,104170.0,104150.0,0.01725]
[1762249137148,0.75887987,104170.0,104160.0,0.01562]
[1762249137765,0.77498987,104170.0,104150.0,0.01725]
[1762249137966,0.85436745,104160.0,104150.0,0.01725]
[1762249138171,0.09547907,104160.0,104150.0,0.01725]
[1762249138388,0.5668761,104170.0,104150.0,0.2484059]
[1762249138596,0.75887087,104170.0,104160.0,0.01562]
[1762249138815,0.75887087,104170.0,104160.0,0.02083101]
[1762249139874,0.5668761,104170.0,104160.0,0.02083101]
[1762249140062,0.5678761,104170.0,104160.0,0.03808101]
[1762249140269,0.75986995,104170.0,104160.0,0.02083101]
[1762249140471,0.76186995,104170.0,104160.0,0.02083101]
[1762249140670,0.003,104170.0,104160.0,0.21284329]
[1762249140873,0.003,104170.0,104160.0,0.27250097]
[1762249141615,0.09647907,104170.0,104160.0,0.23009329]
[1762249141875,0.0967193,104170.0,104160.0,0.23009329]
[1762249142275,0.0957193,104170.0,104160.0,0.23009329]
[1762249142477,0.0957193,104170.0,104160.0,0.03808101]
[1762249142675,0.0957193,104170.0,104160.0,0.23009329]
[1762249142879,0.00024023,104170.0,104160.0,0.23009329]
[1762249143091,0.00024023,104170.0,104160.0,0.28448671]
[1762249143296,0.00024023,104170.0,104160.0,0.62448671]
[1762249143540,0.09547907,104190.0,104160.0,0.63408732]
[1762249143751,0.00014572,104190.0,104180.0,0.55621542]
[1762249143928,0.00014572,104190.0,104180.0,0.58306586]
[1762249144071,0.00014572,104190.0,104180.0,0.66340687]
[1762249145129,0.00014572,104190.0,104180.0,0.47143145]
[1762249145350,0.09562479,104190.0,104180.0,0.39309044]
[1762249145562,0.09562479,104190.0,104180.0,0.58506586]
[1762249145765,0.09562479,104190.0,104180.0,0.39309044]
[1762249145994,0.09562479,104190.0,104180.0,0.39409044]
[1762249146206,0.09562479,104190.0,104180.0,0.02724]
[1762249146207,0.69108089,104190.0,104180.0,0.02724]
[1762249146438,0.88303789,104190.0,104180.0,0.02724]
[1762249147045,0.90673789,104190.0,104180.0,0.00962]
[1762249147261,0.91175418,104190.0,104180.0,0.001]
[1762249147468,0.91375418,104190.0,104180.0,0.001]
[1762249147880,0.89005418,104190.0,104180.0,0.001]
[1762249148303,0.89005418,104190.0,104170.0,0.02587]
[1762249148520,0.89105418,104190.0,104170.0,0.02587]
[1762249149138,0.19197542,104180.0,104170.0,0.02587]
[1762249149361,0.94307592,104190.0,104170.0,0.02587]
[1762249149591,0.91889557,104190.0,104170.0,0.21786328]
[1762249149811,0.0002402,104180.0,104170.0,0.02587]
[1762249150245,0.19221562,104180.0,104170.0,0.04149]
[1762249150673,0.19221562,104180.0,104170.0,0.02424]
[1762249151137,0.0163502,104180.0,104170.0,0.00862]
[1762249151348,0.77520172,104180.0,104170.0,0.00862]
[1762249151780,0.19221562,104180.0,104170.0,0.02424]
[1762249152223,0.0002402,104180.0,104170.0,0.02424]
[1762249152658,0.19221562,104180.0,104170.0,0.02424]
[1762249153294,0.19221562,104180.0,104160.0,0.03206145]
[1762249153295,0.19199385,104170.0,104160.0,0.00521101]
[1762249153507,0.09547907,104170.0,104160.0,0.00521101]
[1762249153721,0.09547907,104170.0,104160.0,0.03808101]
[1762249153937,0.28747292,104170.0,104160.0,0.03808101]
[1762249154136,0.28747292,104170.0,104160.0,0.02083101]
[1762249154341,0.85434902,104170.0,104160.0,0.02083101]
[1762249154594,0.66235517,104170.0,104160.0,0.02083101]
[1762249155009,0.09547907,104170.0,104160.0,0.02083101]
[1762249155267,0.28747292,104170.0,104160.0,0.06367271]
[1762249155463,0.09547907,104170.0,104160.0,0.06367271]
[1762249156107,0.28747292,104170.0,104160.0,0.02083101]
[1762249157124,0.90607902,104170.0,104160.0,0.00521101]
[1762249158300,1.2822613,104170.0,104160.0,0.00521101]
[1762249158677,1.31111215,104170.0,104160.0,0.00521101]
[1762249159299,1.31211215,104170.0,104160.0,0.00521101]
[1762249159534,1.31111215,104170.0,104160.0,0.00521101]
[1762249159756,1.31311215,104170.0,104160.0,0.00521101]
[1762249159960,1.31511215,104170.0,104160.0,0.00521101]
[1762249160115,1.31311215,104170.0,104160.0,0.00521101]
[1762249160312,1.44320492,104170.0,104160.0,0.00521101]
[1762249160681,1.44720492,104170.0,104160.0,0.00521101]
[1762249162397,1.46517938,104170.0,104160.0,0.00521101]
[1762249163023,1.47517937,104170.0,104160.0,0.00521101]
[1762249163504,1.48517936,104170.0,104160.0,0.00521101]
[1762249163711,1.48517936,104170.0,104140.0,0.00112463]
[1762249163712,0.98447866,104150.0,104140.0,0.00112463]
[1762249163925,1.01157866,104150.0,104140.0,0.00112463]
[1762249164117,1.03620866,104150.0,104140.0,0.00112463]
[1762249164320,1.06506409,104150.0,104140.0,0.00112463]
[1762249164544,0.36809522,104150.0,104140.0,0.00112463]
[1762249165599,0.36909522,104150.0,104140.0,0.00112463]
[1762249166466,1.06606409,104150.0,104140.0,0.00112463]
[1762249166897,1.03720866,104150.0,104140.0,0.00112463]
[1762249167108,0.14820907,104150.0,104140.0,0.00112463]
[1762249167386,0.12357907,104150.0,104140.0,0.00112463]
[1762249167807,0.14820907,104150.0,104140.0,0.00112463]
[1762249168017,0.34023979,104150.0,104140.0,0.00112463]
[1762249168838,0.3289801,104150.0,104140.0,0.00112463]
[1762249169436,0.13694938,104150.0,104140.0,0.00112463]
[1762249169832,0.3289801,104150.0,104140.0,0.00112463]
[1762249170943,0.13694938,104150.0,104140.0,0.00112463]
[1762249171373,0.11231938,104150.0,104140.0,0.00112463]
[1762249171586,0.11231938,104150.0,104140.0,0.01663463]
[1762249171791,0.3043501,104150.0,104140.0,0.00112463]
[1762249172386,0.11231938,104150.0,104140.0,0.00112463]
[1762249172585,0.001,104150.0,104140.0,0.22593379]
[1762249172795,0.001,104150.0,104140.0,0.2712739]
[1762249173723,0.001,104150.0,104140.0,0.2732739]
[1762249173926,0.70012146,104170.0,104150.0,0.19203044]
[1762249174132,0.71808357,104170.0,104150.0,0.19203044]
[1762249174386,0.51649001,104170.0,104150.0,0.19203044]
[1762249174813,0.70848457,104170.0,104150.0,0.24055073]
[1762249175081,0.20862228,104160.0,104150.0,0.04852029]
[1762249175296,0.19203072,104150.0,104140.0,0.00112463]
[1762249175497,0.10796907,104150.0,104140.0,0.00112463]
[1762249175709,0.10796907,104150.0,104140.0,0.01763463]
[1762249175924,0.09529294,104150.0,104140.0,0.03788463]
[1762249176967,0.09529294,104150.0,104140.0,0.03888463]
[1762249177170,0.28732366,104150.0,104140.0,0.02163463]
[1762249177376,0.09529294,104150.0,104140.0,0.03888463]
[1762249178005,0.28732366,104150.0,104140.0,0.03888463]
[1762249178226,0.28732366,104150.0,104140.0,0.02163463]
[1762249178883,0.11327405,104150.0,104140.0,0.02163463]
[1762249179096,0.30530748,104150.0,104140.0,0.02163463]
[1762249179516,0.11327676,104150.0,104140.0,0.02163463]
[1762249179741,0.11327676,104150.0,104140.0,0.00612463]
[1762249179742,0.34478748,104150.0,104140.0,0.00612463]
[1762249179926,1.04175635,104150.0,104140.0,0.00612463]
[1762249180641,0.32191748,104150.0,104140.0,0.00212463]
[1762249180847,0.32191748,104150.0,104140.0,0.00112463]
[1762249181714,0.34478748,104150.0,104140.0,0.00112463]
[1762249181938,0.34478748,104150.0,104140.0,0.00312463]
[1762249182359,0.32191748,104150.0,104140.0,0.00312463]
[1762249183035,0.34478748,104150.0,104140.0,0.00312463]
[1762249183449,0.34462937,104150.0,104140.0,0.00312463]
[1762249183664,0.15259865,104150.0,104140.0,0.00312463]
[1762249183874,0.12972134,104150.0,104140.0,0.00312463]
[1762249184948,0.32175206,104150.0,104140.0,0.00312463]
[1762249185375,0.12972134,104150.0,104140.0,0.00312463]
[1762249185791,0.32175206,104150.0,104140.0,0.00312463]
[1762249186457,0.12972134,104150.0,104140.0,0.00312463]
[1762249186927,0.12972134,104150.0,104140.0,0.21078379]
[1762249187170,0.32175206,104150.0,104140.0,0.01873463]
[1762249187424,0.32175206,104150.0,104140.0,0.00312463]
[1762249187671,0.34559206,104150.0,104140.0,0.00312463]
[1762249187938,0.15356134,104150.0,104140.0,0.00312463]
[1762249188502,0.11311134,104150.0,104140.0,0.21078379]
[1762249188761,0.11293222,104150.0,104140.0,0.2527939]
[1762249189027,0.11293222,104150.0,104140.0,0.06074474]
[1762249189490,0.11293222,104150.0,104140.0,0.21078379]
[1762249189991,0.11293222,104150.0,104140.0,0.01873463]
[1762249190495,0.11293222,104150.0,104140.0,0.21078379]
[1762249190737,0.11293222,104150.0,104140.0,0.01873463]
[1762249192638,0.11293222,104150.0,104140.0,0.21078379]
[1762249193387,0.11293222,104150.0,104140.0,0.02735463]
[1762249193638,0.11274709,104150.0,104140.0,0.28048594]
[1762249193883,0.11274709,104150.0,104140.0,0.26128103]
[1762249194373,0.01797651,104150.0,104140.0,0.26128103]
[1762249195365,0.01797651,104150.0,104140.0,0.06923187]
[1762249195588,0.01797651,104150.0,104140.0,0.26128103]
[1762249197658,0.11345558,104150.0,104140.0,0.06923187]
[1762249197866,0.11345558,104150.0,104140.0,0.04460463]
[1762249198108,0.01797651,104150.0,104140.0,0.23665379]
[1762249198764,0.01797651,104150.0,104140.0,0.04460463]
[1762249198972,0.11345558,104150.0,104140.0,0.04460463]
[1762249199594,0.3054863,104150.0,104140.0,0.02735463]
[1762249199807,0.11345558,104150.0,104140.0,0.02735463]
[1762249200032,0.11345558,104150.0,104140.0,0.04460463]
[1762249200439,0.3054863,104150.0,104140.0,0.04460463]
[1762249200658,0.3563663,104150.0,104140.0,0.01174463]
[1762249200888,0.16413444,104150.0,104140.0,0.01174463]
[1762249201107,0.14029444,104150.0,104140.0,0.01174463]
[1762249201331,0.01777537,104150.0,104140.0,0.25972003]
[1762249201545,0.11325444,104150.0,104140.0,0.06767087]
[1762249201765,0.11325444,104150.0,104140.0,0.25972003]
[1762249202201,0.11325444,104150.0,104140.0,0.06767087]
[1762249202415,0.31671516,104150.0,104140.0,0.02735463]
[1762249202635,0.29893979,104150.0,104140.0,0.02735463]
[1762249202851,0.33838979,104150.0,104140.0,0.01174463]
[1762249203080,1.03535866,104150.0,104140.0,0.00312463]
[1762249203523,1.07154094,104150.0,104140.0,0.00312463]
[1762249203745,1.41154094,104150.0,104140.0,0.00312463]
[1762249204189,1.42154093,104150.0,104140.0,0.00312463]
[1762249204645,1.42254093,104150.0,104140.0,0.00112463]
[1762249205724,1.42154093,104150.0,104140.0,0.00112463]
[1762249205984,1.42541384,104150.0,104140.0,0.00112463]
[1762249206194,1.42741384,104150.0,104140.0,0.00112463]
[1762249206412,1.43591709,104150.0,104140.0,0.00112463]
[1762249206851,1.43891709,104150.0,104140.0,0.00112463]
[1762249207921,1.4677771,104150.0,104140.0,0.00112463]
[1762249208576,1.4827968,104150.0,104140.0,0.00112463]
[1762249209201,0.00960338,104130.0,104080.0,0.21640319]
[1762249209406,1.01162935,104090.0,104080.0,0.02580608]
[1762249209616,1.01162935,104090.0,104070.0,0.06900319]
[1762249209617,1.03546935,104090.0,104070.0,0.06900319]
[1762249209849,0.82771794,104090.0,104070.0,0.20079411]
[1762249210063,0.13074907,104090.0,104080.0,0.00144289]
[1762249210277,0.14635907,104090.0,104080.0,0.00144289]
[1762249210693,0.33859362,104090.0,104080.0,0.00144289]
[1762249211056,0.14645221,104090.0,104080.0,0.00144289]
[1762249211293,0.84342108,104090.0,104080.0,0.00144289]
[1762249211467,1.03556249,104090.0,104080.0,0.00144289]
[1762249211688,0.84342108,104090.0,104080.0,0.00644289]
[1762249212092,1.03556249,104090.0,104080.0,0.00644289]
[1762249212291,0.84342108,104090.0,104080.0,0.00844289]
[1762249213008,1.03556249,104090.0,104080.0,0.00844289]
[1762249213172,1.03534034,104090.0,104080.0,0.00844289]
[1762249213344,0.84319893,104090.0,104080.0,0.00844289]
[1762249213549,0.87206863,104090.0,104080.0,0.00844289]
[1762249213752,0.14623006,104090.0,104080.0,0.00844289]
[1762249213952,0.31453147,104090.0,104080.0,0.00844289]
[1762249214270,0.33837147,104090.0,104080.0,0.00844289]
[1762249214466,0.14623006,104090.0,104080.0,0.00844289]
[1762249215188,0.09535006,104090.0,104080.0,0.21676276]
[1762249215572,0.09535006,104090.0,104080.0,0.23401276]
[1762249215803,9.314e-05,104090.0,104080.0,0.26263529]
[1762249216000,9.314e-05,104090.0,104080.0,0.65251919]
[1762249216245,9.314e-05,104090.0,104080.0,0.67832527]
[1762249217482,9.314e-05,104090.0,104080.0,0.62844137]
[1762249217932,9.314e-05,104090.0,104080.0,0.67166981]
[1762249218139,9.314e-05,104090.0,104080.0,0.64586373]
[1762249218300,9.314e-05,104090.0,104080.0,0.57401276]
[1762249219655,9.314e-05,104090.0,104080.0,0.59981884]
[1762249220300,9.314e-05,104090.0,104080.0,0.6842982]
[1762249222673,9.314e-05,104090.0,104080.0,0.71292073]
[1762249223170,9.314e-05,104090.0,104080.0,0.74749784]
[1762249223382,9.314e-05,104090.0,104080.0,0.71292073]
[1762249224197,9.314e-05,104090.0,104080.0,0.69911776]
[1762249225421,9.314e-05,104090.0,104080.0,0.67049523]
[1762249228798,9.314e-05,104090.0,104080.0,0.59981884]
[1762249230329,9.314e-05,104090.0,104080.0,0.63439595]
[1762249230757,9.314e-05,104090.0,104080.0,0.57401276]
[1762249230975,9.314e-05,104090.0,104080.0,0.65503441]
[1762249231197,9.314e-05,104090.0,104080.0,0.72753392]
[1762249231499,9.314e-05,104090.0,104080.0,0.75615645]
[1762249232379,9.314e-05,104090.0,104080.0,0.64651227]
[1762249233019,9.314e-05,104090.0,104080.0,0.55676276]
[1762249233235,9.314e-05,104090.0,104080.0,0.57401276]
[1762249233883,0.01809065,104090.0,104080.0,0.57401276]
[1762249234095,0.01809065,104090.0,104080.0,0.55676276]
[1762249234306,0.01809065,104090.0,104080.0,0.21676276]
[1762249234745,9.314e-05,104090.0,104080.0,0.23401276]
[1762249237507,0.05281314,104090.0,104080.0,0.20060276]
[1762249237725,9.314e-05,104090.0,104080.0,0.21623276]
[1762249238382,0.04143314,104090.0,104080.0,0.20060276]
[1762249241117,0.44613734,104090.0,104080.0,0.00844289]
[1762249241325,0.44613734,104090.0,104080.0,0.20060276]
[1762249241600,0.04143314,104090.0,104080.0,0.20060276]
[1762249241803,0.78085603,104090.0,104080.0,0.20060276]
[1762249242240,0.7988505,104090.0,104080.0,0.00844289]
[1762249242357,1.0624694,104090.0,104080.0,0.00844289]
[1762249242569,1.25461081,104090.0,104080.0,0.00844289]
[1762249243190,1.28348004,104090.0,104080.0,0.00844289]
[1762249244228,1.28348004,104090.0,104080.0,0.00644289]
[1762249244623,1.28348004,104090.0,104080.0,0.00244289]
[1762249245170,1.28348004,104090.0,104080.0,0.00344289]
[1762249246020,0.52377591,104090.0,104080.0,0.00344289]
[1762249246598,0.52377591,104090.0,104080.0,0.19560276]
[1762249246805,0.52377591,104090.0,104080.0,0.00344289]
[1762249247002,0.52377591,104090.0,104080.0,0.19560276]
[1762249248184,0.08829684,104090.0,104080.0,0.19560276]
[1762249248402,0.05942761,104090.0,104080.0,0.19560276]
[1762249249000,0.04143314,104090.0,104080.0,0.19560276]
[1762249251278,9.314e-05,104090.0,104080.0,0.21178276]
[1762249251687,0.01535314,104090.0,104080.0,0.19560276]
[1762249251903,0.03938314,104090.0,104080.0,0.19560276]
[1762249252142,0.51393852,104090.0,104080.0,0.19560276]
[1762249252728,0.51393852,104090.0,104080.0,0.00344289]
[1762249253447,0.53192357,104090.0,104080.0,0.19560276]
[1762249254658,0.37938314,104090.0,104080.0,0.19560276]
[1762249256456,0.03938314,104090.0,104080.0,0.19560276]
[1762249256778,0.01535314,104090.0,104080.0,0.19560276]
[1762249256916,0.03938314,104090.0,104080.0,0.19560276]
[1762249257343,0.03938314,104090.0,104080.0,0.19360276]
[1762249257603,0.03938314,104090.0,104080.0,0.19560276]
[1762249257904,0.03938314,104090.0,104080.0,0.19860276]
[1762249259475,0.03938314,104090.0,104080.0,0.08892276]
[1762249260255,9.314e-05,104090.0,104080.0,0.15500905]
[1762249260461,9.314e-05,104090.0,104080.0,0.26773812]
[1762249260659,9.314e-05,104090.0,104080.0,0.3105105]
[1762249260886,9.314e-05,104090.0,104080.0,0.37102394]
[1762249261102,9.314e-05,104090.0,104080.0,0.68521786]
[1762249261306,9.314e-05,104090.0,104080.0,0.73020368]
[1762249261484,9.314e-05,104090.0,104080.0,0.7820889]
[1762249261700,9.314e-05,104090.0,104080.0,0.79325112]
[1762249261998,9.314e-05,104090.0,104080.0,0.79725112]
[1762249262195,3.14e-06,104090.0,104080.0,0.79725112]
[1762249262400,0.01188,104130.0,104120.0,0.19208605]
[1762249262593,0.01188,104130.0,104120.0,0.25248802]
[1762249262795,0.01205,104140.0,104130.0,0.1920676]
[1762249263073,0.05406652,104140.0,104130.0,0.1920676]
[1762249263283,0.05134,104140.0,104130.0,0.1920676]
[1762249263426,0.44740198,104150.0,104140.0,0.19204916]
[1762249263637,0.68143838,104150.0,104130.0,0.01618]
[1762249263840,0.01526,104140.0,104130.0,0.1920676]
[1762249264045,0.03929,104140.0,104130.0,0.1940676]
[1762249264296,0.03877684,104140.0,104130.0,0.001]
[1762249264492,0.03877684,104140.0,104120.0,0.21093662]
[1762249264697,0.14681907,104130.0,104120.0,0.20183232]
[1762249264917,1.05438179,104130.0,104120.0,0.00974627]
[1762249265481,0.48681907,104130.0,104120.0,0.00974627]
[1762249265695,0.48681907,104130.0,104120.0,0.20183232]
[1762249265908,0.11073907,104130.0,104120.0,0.20183232]
[1762249266114,0.01526,104130.0,104120.0,0.20183232]
[1762249266324,0.01526,104130.0,104120.0,0.24588294]
[1762249266524,0.01526,104130.0,104120.0,0.24788294]
[1762249266980,0.01526,104130.0,104120.0,0.20383232]
[1762249267182,0.01526,104130.0,104120.0,0.20333232]
[1762249267391,0.01526,104130.0,104120.0,0.20733232]
[1762249267605,0.11073907,104130.0,104120.0,0.20733232]
[1762249267814,0.13476907,104130.0,104120.0,0.20733232]
[1762249268020,0.13637501,104130.0,104120.0,0.20733232]
[1762249268641,0.04089594,104130.0,104120.0,0.24943294]
[1762249269758,0.04089594,104130.0,104120.0,0.20683232]
[1762249273243,0.01686594,104130.0,104120.0,0.20683232]
[1762249273439,0.00160594,104130.0,104120.0,0.31849139]
[1762249274083,0.00160594,104130.0,104120.0,0.37043517]
[1762249277542,0.13766501,104130.0,104120.0,0.20633232]
[1762249279771,0.47766501,104130.0,104120.0,0.20633232]
[1762249280389,0.38218594,104130.0,104120.0,0.20633232]
[1762249280888,0.35795594,104130.0,104120.0,0.26459494]
[1762249281096,0.01795594,104130.0,104120.0,0.26459494]
[1762249281303,0.00160594,104130.0,104120.0,0.26459494]
[1762249281510,0.01795594,104130.0,104120.0,0.24833494]
[1762249281727,0.00160594,104130.0,104120.0,0.26459494]
[1762249282385,0.01795594,104130.0,104120.0,0.24833494]
[1762249283209,0.01795594,104130.0,104120.0,0.24783494]
[1762249287073,0.01795594,104130.0,104120.0,0.20583232]
[1762249287307,0.04218594,104130.0,104120.0,0.20583232]
[1762249287541,0.04218594,104130.0,104120.0,0.01374627]
[1762249287872,0.04218594,104130.0,104120.0,0.20583232]
[1762249288156,0.15563624,104130.0,104120.0,0.20583232]
[1762249288609,0.15563624,104130.0,104120.0,0.01374627]
[1762249288845,0.15563624,104130.0,104120.0,0.20583232]
[1762249289279,0.06015717,104130.0,104120.0,0.20583232]
[1762249289951,0.15563624,104130.0,104120.0,0.20383232]
[1762249290161,0.15563624,104130.0,104120.0,0.20083232]
[1762249290583,0.15563624,104130.0,104120.0,0.20283232]
[1762249291434,0.06015717,104130.0,104120.0,0.20283232]
[1762249294958,0.06015717,104130.0,104120.0,0.19523188]
[1762249296763,0.15563624,104130.0,104120.0,1.88e-06]
[1762249296970,0.15563624,104130.0,104120.0,0.19208605]
[1762249298026,0.15563624,104130.0,104110.0,0.20169386]
[1762249298232,0.03888,104120.0,104110.0,0.2092943]
[1762249298440,0.05685123,104120.0,104110.0,0.2092943]
[1762249299251,0.05685123,104120.0,104110.0,0.2112943]
[1762249299471,0.39685123,104120.0,104110.0,0.2112943]
[1762249300266,0.37888,104120.0,104110.0,0.2112943]
[1762249300977,0.37888,104120.0,104110.0,0.2122943]
[1762249301391,0.37888,104120.0,104110.0,0.2112943]
[1762249301596,0.37888,104120.0,104110.0,0.2142943]
[1762249303165,0.03888,104120.0,104110.0,0.2142943]
[1762249303591,0.04024564,104120.0,104110.0,0.2142943]
[1762249303794,0.04024564,104120.0,104110.0,0.21431016]
[1762249304204,0.04024564,104120.0,104110.0,0.25850095]
[1762249306583,0.04024564,104120.0,104110.0,0.29468323]
[1762249306801,0.04064564,104120.0,104110.0,0.29468323]
[1762249307272,0.04064564,104120.0,104110.0,0.32058248]
[1762249309260,0.01698564,104120.0,104110.0,0.32058248]
[1762249309457,0.01698564,104120.0,104110.0,0.35511482]
[1762249309682,0.01698564,104120.0,104110.0,0.38363482]
[1762249310346,0.01698564,104120.0,104110.0,0.36517482]
[1762249310675,0.01698564,104120.0,104110.0,0.36717482]
[1762249310878,0.01698564,104120.0,104110.0,0.36417482]
[1762249311086,0.01772564,104120.0,104110.0,0.37017482]
[1762249312048,0.01772564,104120.0,104110.0,0.36217482]
[1762249312252,0.01772564,104120.0,104110.0,0.37017482]
[1762249312487,0.04138564,104120.0,104110.0,0.36111482]
[1762249313119,0.01772564,104120.0,104110.0,0.36111482]
[1762249313327,0.02715564,104120.0,104110.0,0.36111482]
[1762249314137,0.05081564,104120.0,104110.0,0.36111482]
[1762249314738,0.05081564,104120.0,104110.0,0.32658248]
[1762249316251,0.05081564,104120.0,104110.0,0.28239169]
[1762249318282,0.05081564,104120.0,104110.0,0.24620941]
[1762249318715,0.05081564,104120.0,104110.0,0.011]
[1762249318915,0.64197524,104120.0,104100.0,0.02589925]
[1762249319128,0.54171678,104110.0,104090.0,0.25257057]
[1762249319332,0.01636,104100.0,104090.0,0.25257057]
[1762249319542,0.04002,104100.0,104090.0,0.21803823]
[1762249319762,0.04002,104100.0,104090.0,0.19213898]
[1762249320000,0.04002,104100.0,104090.0,0.19214141]
[1762249320966,0.38002,104100.0,104080.0,0.23623643]
[1762249321229,0.04002,104090.0,104080.0,0.32503125]
[1762249321961,0.05032742,104090.0,104080.0,0.32503125]
[1762249322394,0.05032742,104090.0,104080.0,0.32551767]
[1762249323248,0.05232742,104090.0,104080.0,0.32551767]
[1762249323608,0.05232742,104090.0,104080.0,0.33311811]
[1762249323917,0.05232742,104090.0,104080.0,0.28050557]
[1762249324990,0.05232742,104090.0,104080.0,0.23477907]
[1762249325196,0.05232742,104090.0,104080.0,0.00808686]
[1762249325409,0.14780649,104090.0,104080.0,0.00808686]
[1762249326088,0.14780649,104090.0,104070.0,0.22695058]
[1762249326365,0.04002,104080.0,104070.0,0.22704372]
[1762249326588,0.04002,104080.0,104070.0,0.03486601]
[1762249326802,0.04002,104080.0,104070.0,0.22704435]
[1762249327011,0.04002,104080.0,104070.0,0.19251201]
[1762249328584,0.04002,104080.0,104070.0,0.32086047]
[1762249328777,0.04002,104080.0,104070.0,0.26422663]
[1762249329467,0.04002,104080.0,104070.0,0.26622663]
[1762249330214,0.04002,104080.0,104070.0,0.19551201]
[1762249330215,0.38002,104080.0,104070.0,0.19551201]
[1762249331258,0.38002,104080.0,104070.0,0.19351201]
[1762249332080,0.38002,104080.0,104070.0,0.19251201]
[1762249335080,0.04002,104080.0,104070.0,0.19251201]
[1762249338313,0.04831,104080.0,104070.0,0.19251201]
[1762249339228,0.02465,104080.0,104070.0,0.19251201]
[1762249339445,0.00829,104080.0,104070.0,0.25681429]
[1762249339674,0.37715409,104100.0,104090.0,0.19214141]
[1762249339890,0.00829,104100.0,104090.0,0.20097141]
[1762249340097,0.02357,104100.0,104090.0,0.20097141]
[1762249340308,0.02357,104100.0,104090.0,0.19214141]
[1762249340777,0.04825,104100.0,104090.0,0.19214141]
[1762249341236,0.05225,104100.0,104090.0,0.23057154]
[1762249341666,0.04825,104100.0,104090.0,0.23057154]
[1762249341894,0.05025,104100.0,104090.0,0.23057154]
[1762249342995,0.05225,104100.0,104090.0,0.23057154]
[1762249343444,0.05025,104100.0,104090.0,0.23057154]
[1762249343668,0.05025,104100.0,104090.0,0.26675382]
[1762249343912,0.05125,104100.0,104090.0,0.22832369]
[1762249344344,0.05125,104100.0,104090.0,0.27285602]
[1762249344559,0.00929,104100.0,104090.0,0.36277452]
[1762249344783,0.00929,104100.0,104090.0,0.41158234]
[1762249344995,0.00602,104110.0,104100.0,0.23830522]
[1762249345215,0.00602,104110.0,104100.0,0.36831167]
[1762249345423,0.0213,104110.0,104100.0,0.36831167]
[1762249345629,0.04598,104110.0,104100.0,0.36831167]
[1762249346059,0.04598,104110.0,104100.0,0.37031167]
[1762249346280,0.04598,104110.0,104100.0,0.44597822]
[1762249347658,0.04598,104110.0,104100.0,0.44997822]
[1762249348568,0.04598,104110.0,104100.0,0.43997823]
[1762249348780,0.04598,104110.0,104100.0,0.29360202]
[1762249349200,0.04598,104110.0,104100.0,0.3297843]
[1762249349835,0.04598,104110.0,104100.0,0.36431168]
[1762249350051,0.04598,104110.0,104100.0,0.35831168]
[1762249350269,0.04598,104110.0,104100.0,0.35931168]
[1762249350713,0.04598,104110.0,104100.0,0.43209445]
[1762249351345,0.04598,104110.0,104100.0,0.39756707]
[1762249351573,0.04598,104110.0,104100.0,0.003]
[1762249352049,0.04598,104110.0,104090.0,0.22666814]
[1762249352281,0.03994,104100.0,104090.0,0.26285042]
[1762249353378,0.03994,104100.0,104090.0,0.26585042]
[1762249353816,0.03994,104100.0,104090.0,0.26385042]
[1762249354043,0.03994,104100.0,104090.0,0.26785042]
[1762249354688,0.03994,104100.0,104090.0,0.26685107]
[1762249355122,0.03994,104100.0,104090.0,0.26885107]
[1762249355338,0.03994,104100.0,104090.0,0.07670966]
[1762249355756,0.03994,104100.0,104090.0,0.26885107]
[1762249356227,0.03994,104100.0,104090.0,0.32664072]
[1762249356445,0.03994,104100.0,104090.0,0.32464072]
[1762249356671,0.03994,104100.0,104090.0,0.32564072]
[1762249356906,0.03994,104100.0,104090.0,0.32664072]
[1762249357330,0.03994,104100.0,104090.0,0.32614072]
[1762249359499,0.01627,104100.0,104090.0,0.32614072]
[1762249359709,0.02969,104110.0,104100.0,0.22830523]
[1762249359915,0.02969,104110.0,104100.0,0.22780523]
[1762249359916,0.00602,104110.0,104100.0,0.22780523]
[1762249360124,0.00602,104110.0,104100.0,0.24417523]
[1762249360352,0.00602,104110.0,104100.0,0.26691523]
[1762249360549,0.04596,104110.0,104100.0,0.22780523]
[1762249360791,0.34829,104120.0,104100.0,0.26691523]
[1762249360992,0.37196,104120.0,104100.0,0.3246963]
[1762249361194,0.01627,104110.0,104100.0,0.2855863]
[1762249361402,0.03994,104110.0,104100.0,0.03618228]
[1762249362015,0.03994,104110.0,104100.0,0.22830523]
[1762249362249,0.03994,104110.0,104100.0,0.03618228]
[1762249362875,0.03994,104110.0,104100.0,0.22830523]
[1762249363766,0.01627,104110.0,104100.0,0.3237843]
[1762249363979,0.01627,104110.0,104100.0,0.39460553]
[1762249364616,0.03994,104110.0,104100.0,0.39460553]
[1762249364819,0.03994,104110.0,104100.0,0.3237843]
[1762249365008,0.03994,104110.0,104100.0,0.3247843]
[1762249365450,0.01627,104110.0,104100.0,0.3247843]
[1762249365656,0.01627,104110.0,104100.0,0.3267843]
[1762249366305,0.04024,104110.0,104100.0,0.03918228]
[1762249366515,0.385093,104110.0,104100.0,0.003]
[1762249368415,0.78442495,104110.0,104100.0,0.003]
[1762249368614,0.77957195,104110.0,104100.0,0.003]
[1762249368887,1.3710084,104110.0,104100.0,0.003]
[1762249369146,1.3710084,104110.0,104080.0,0.05179851]
[1762249369147,0.73933195,104090.0,104080.0,0.05179851]
[1762249369386,0.75586195,104090.0,104080.0,0.05179851]
[1762249369605,0.75586195,104090.0,104070.0,0.05213218]
[1762249369606,0.78812195,104090.0,104070.0,0.05213218]
[1762249369817,0.77983195,104080.0,104070.0,0.05213218]
[1762249370238,0.3805,104080.0,104070.0,0.05213218]
[1762249370446,0.34,104080.0,104070.0,0.08088218]
[1762249370661,0.75586195,104080.0,104070.0,0.01261367]
[1762249370888,1.1791639,104080.0,104070.0,0.00033367]
[1762249371780,1.1801639,104080.0,104070.0,0.00033367]
[1762249372018,1.1791639,104080.0,104070.0,0.00033367]
[1762249372466,0.95216349,104080.0,104070.0,0.00033367]
[1762249372944,0.95116349,104080.0,104070.0,0.00033367]
[1762249373180,0.95716349,104080.0,104070.0,0.00033367]
[1762249374363,0.98603094,104080.0,104070.0,0.00033367]
[1762249375441,1.17819081,104080.0,104070.0,0.00033367]
[1762249376290,0.98603094,104080.0,104070.0,0.00033367]
[1762249376500,1.17819081,104080.0,104070.0,0.00033367]
[1762249376918,0.99620531,104080.0,104070.0,0.00033367]
[1762249377133,1.18836518,104080.0,104070.0,0.00033367]
[1762249377616,1.18836518,104080.0,104070.0,3.67e-06]
[1762249377827,0.34,104070.0,104060.0,0.0002513]
[1762249378042,1.04971113,104070.0,104060.0,0.0002513]
[1762249378470,1.07858089,104070.0,104060.0,0.0002513]
[1762249379137,1.08158089,104070.0,104060.0,0.0002513]
[1762249379371,0.93575923,104070.0,104060.0,1.3e-06]
[1762249379599,0.1921968,104060.0,104050.0,0.0002]
[1762249379826,0.56766349,104050.0,104030.0,0.0002]
[1762249380052,0.12029907,104040.0,104030.0,0.0002]